bitfinex-derivatives/quotes_BTCF0:USTF0_20250814
["timestamp","ask_amount","ask_price","bid_price","bid_amount"]
[1755155238526,0.17338864,121790.0,121780.0,1.2194562]
[1755155243431,0.09131914,121790.0,121780.0,1.2194562]
[1755155243727,0.17338864,121790.0,121780.0,1.2194562]
[1755155244331,0.17338864,121790.0,121780.0,1.62672685]
[1755155245130,0.09131914,121790.0,121780.0,1.62672685]
[1755155245732,0.06731914,121790.0,121780.0,1.62672685]
[1755155246029,0.09027914,121790.0,121780.0,1.62672685]
[1755155246432,0.09027914,121790.0,121780.0,1.2194562]
[1755155246624,0.09027914,121790.0,121780.0,1.62672685]
[1755155247234,0.09027914,121790.0,121780.0,1.2194562]
[1755155247428,0.09027914,121790.0,121780.0,1.62672685]
[1755155247732,0.17234874,121790.0,121780.0,1.2194562]
[1755155248333,0.26906874,121790.0,121780.0,1.2197762]
[1755155250138,0.25488874,121790.0,121780.0,1.2197762]
[1755155253236,0.25488874,121790.0,121780.0,1.62704685]
[1755155256329,0.26906874,121790.0,121780.0,1.2197762]
[1755155256837,0.26906874,121790.0,121780.0,1.62676685]
[1755155258430,0.25488874,121790.0,121780.0,1.62676685]
[1755155260944,0.25488874,121790.0,121780.0,1.2194962]
[1755155261133,0.25488874,121790.0,121780.0,1.62676685]
[1755155263041,0.22056874,121790.0,121780.0,1.62676685]
[1755155263446,0.13849914,121790.0,121780.0,1.62676685]
[1755155263837,0.06731914,121790.0,121780.0,0.86448685]
[1755155264036,0.06731914,121790.0,121780.0,1.62880685]
[1755155264736,0.06731914,121790.0,121780.0,0.86448685]
[1755155264941,0.06731914,121790.0,121780.0,1.62880685]
[1755155265941,0.12478914,121790.0,121780.0,1.62880685]
[1755155266639,0.12478914,121790.0,121780.0,0.86448685]
[1755155266839,0.12478914,121790.0,121780.0,1.62860685]
[1755155267642,0.14774914,121790.0,121780.0,1.62860685]
[1755155268237,0.14774914,121790.0,121780.0,1.2213362]
[1755155268439,0.14774914,121790.0,121780.0,1.62860685]
[1755155269146,0.14774914,121790.0,121780.0,1.2213362]
[1755155269345,0.14774914,121790.0,121780.0,1.62860685]
[1755155271449,0.14774914,121790.0,121780.0,1.2213362]
[1755155271648,0.14774914,121790.0,121780.0,1.62860685]
[1755155271845,0.14774914,121790.0,121780.0,1.2213362]
[1755155272056,0.14774914,121790.0,121780.0,0.86448685]
[1755155272352,0.14774914,121790.0,121780.0,1.62808685]
[1755155274651,0.19542914,121790.0,121780.0,1.62808685]
[1755155274854,0.24242914,121790.0,121780.0,1.62808685]
[1755155275353,0.22821914,121790.0,121780.0,1.62808685]
[1755155275557,0.22821914,121790.0,121780.0,0.86448685]
[1755155275751,0.24212914,121790.0,121780.0,1.2212562]
[1755155276455,0.32419884,121790.0,121780.0,1.2212562]
[1755155276654,0.32419884,121790.0,121780.0,0.4572162]
[1755155276860,0.32419884,121790.0,121780.0,1.2210562]
[1755155277359,0.32419884,121790.0,121780.0,0.4572162]
[1755155277659,0.32419884,121790.0,121780.0,1.2209362]
[1755155278155,0.32419884,121790.0,121780.0,1.62820685]
[1755155278363,0.24212914,121790.0,121780.0,0.86448685]
[1755155278562,0.32419884,121790.0,121780.0,1.62820685]
[1755155279862,0.24212914,121790.0,121780.0,0.86448685]
[1755155280562,0.32419884,121790.0,121780.0,1.62768685]
[1755155281261,0.24212914,121790.0,121780.0,1.62768685]
[1755155282166,0.24212914,121790.0,121780.0,1.2204162]
[1755155282362,0.24212914,121790.0,121780.0,1.62768685]
[1755155284370,0.29959914,121790.0,121780.0,1.62768685]
[1755155284774,0.29959914,121790.0,121780.0,1.2204162]
[1755155285074,0.29959914,121790.0,121780.0,0.4572162]
[1755155285273,0.29959914,121790.0,121780.0,1.2199362]
[1755155286973,0.29959914,121790.0,121780.0,1.62720685]
[1755155287274,0.29959914,121790.0,121780.0,1.2199362]
[1755155287576,0.29959914,121790.0,121780.0,1.62720685]
[1755155291978,0.29959914,121790.0,121780.0,1.2199362]
[1755155292272,0.29959914,121790.0,121780.0,1.2195762]
[1755155293077,0.29959914,121790.0,121780.0,1.62684685]
[1755155293976,0.29959914,121790.0,121780.0,1.2195762]
[1755155294173,0.29959914,121790.0,121780.0,1.62684685]
[1755155294375,0.38166884,121790.0,121780.0,1.62684685]
[1755155295378,0.29959914,121790.0,121780.0,1.62684685]
[1755155299082,0.29959914,121790.0,121780.0,1.2195762]
[1755155299380,0.29959914,121790.0,121780.0,1.62684685]
[1755155299879,0.38166894,121790.0,121780.0,1.62684685]
[1755155300984,0.38166894,121790.0,121780.0,1.2202562]
[1755155301282,0.38166894,121790.0,121780.0,1.2193962]
[1755155301581,0.38166894,121790.0,121780.0,0.4565162]
[1755155301784,0.38166894,121790.0,121780.0,1.2193962]
[1755155302080,0.38166894,121790.0,121780.0,1.2192762]
[1755155302282,0.38166894,121790.0,121780.0,0.4565162]
[1755155302477,0.38166894,121790.0,121780.0,1.2191962]
[1755155303085,0.38166894,121790.0,121780.0,0.4565162]
[1755155303277,0.38166894,121790.0,121780.0,1.2189962]
[1755155303785,0.38166894,121790.0,121780.0,0.4565162]
[1755155303985,0.38166894,121790.0,121780.0,1.2188762]
[1755155304187,0.38166894,121790.0,121780.0,1.2187962]
[1755155304486,0.38166894,121790.0,121780.0,0.4565162]
[1755155305075,0.38166894,121790.0,121780.0,1.2197162]
[1755155305477,0.78893959,121790.0,121780.0,0.4438762]
[1755155305883,0.78893959,121790.0,121780.0,0.4487362]
[1755155306386,0.38166894,121790.0,121780.0,0.4565162]
[1755155306585,0.38166894,121790.0,121780.0,1.2197162]
[1755155306887,0.38166894,121790.0,121780.0,0.4565162]
[1755155307087,0.38166894,121790.0,121780.0,1.2194362]
[1755155307285,0.78893959,121790.0,121780.0,0.4565162]
[1755155307687,0.38166894,121790.0,121780.0,1.2193562]
[1755155308888,0.84061378,121790.0,121780.0,1.2193562]
[1755155309890,0.84061378,121790.0,121780.0,0.4565162]
[1755155310078,0.84061378,121790.0,121780.0,1.2201962]
[1755155315093,0.84061378,121790.0,121780.0,1.67914104]
[1755155315294,0.38166894,121790.0,121780.0,1.67914104]
[1755155315795,0.84061378,121790.0,121780.0,1.2201962]
[1755155316386,0.84061378,121790.0,121780.0,1.67914104]
[1755155316586,0.38166894,121790.0,121780.0,1.2201962]
[1755155316789,0.84061378,121790.0,121780.0,1.67914104]
[1755155317089,0.66416398,121790.0,121780.0,1.67914104]
[1755155317296,0.20521914,121790.0,121780.0,0.91546104]
[1755155317492,0.20521914,121790.0,121780.0,1.2209962]
[1755155317791,0.20521914,121790.0,121780.0,1.67994104]
[1755155318697,0.20521914,121790.0,121780.0,1.62886527]
[1755155318893,0.20521914,121790.0,121780.0,1.2209962]
[1755155319094,0.20521914,121790.0,121780.0,1.62886527]
[1755155319294,0.20521914,121790.0,121780.0,1.2209962]
[1755155319490,0.23737914,121790.0,121780.0,1.2209962]
[1755155319693,0.29841914,121790.0,121780.0,1.2241562]
[1755155320900,0.38048904,121790.0,121780.0,1.2241562]
[1755155321405,0.38048904,121790.0,121780.0,0.4565162]
[1755155321596,0.38048904,121790.0,121780.0,1.2238762]
[1755155321791,0.38048904,121790.0,121780.0,0.4565162]
[1755155321998,0.38048904,121790.0,121780.0,1.2237962]
[1755155324004,0.29841914,121790.0,121780.0,0.86438527]
[1755155324302,0.29841914,121790.0,121780.0,1.2241562]
[1755155325408,0.29841914,121790.0,121780.0,0.4565162]
[1755155325608,0.29841914,121790.0,121780.0,1.2238362]
[1755155327411,0.29841914,121790.0,121780.0,1.63170527]
[1755155328212,0.29841914,121790.0,121780.0,1.2238362]
[1755155328918,0.29841914,121790.0,121780.0,1.63170527]
[1755155330420,0.11794,121790.0,121780.0,0.86438527]
[1755155330615,0.11794,121790.0,121780.0,1.63190527]
[1755155331317,0.14053,121790.0,121780.0,0.4565162]
[1755155331511,0.23373,121790.0,121780.0,1.2241162]
[1755155331716,0.23373,121790.0,121780.0,0.4565162]
[1755155331916,0.23373,121790.0,121780.0,1.2241162]
[1755155332822,0.3157999,121790.0,121780.0,1.2241162]
[1755155333724,0.30085448,121790.0,121780.0,1.2241162]
[1755155334019,0.30085448,121790.0,121780.0,1.63198527]
[1755155334227,0.20765448,121790.0,121780.0,1.63150527]
[1755155334721,0.20765448,121790.0,121780.0,1.2236362]
[1755155334924,0.20765448,121790.0,121780.0,1.63150527]
[1755155335513,0.32235438,121790.0,121780.0,0.86438527]
[1755155335716,0.38435438,121790.0,121780.0,1.2237162]
[1755155338525,0.38435438,121790.0,121780.0,1.2239562]
[1755155339229,0.38435438,121790.0,121780.0,0.4565162]
[1755155339428,0.38435438,121790.0,121780.0,1.2241562]
[1755155340630,0.84323466,121790.0,121780.0,1.68303648]
[1755155341429,0.84323466,121790.0,121780.0,1.2241562]
[1755155341628,0.38435438,121790.0,121780.0,1.68303648]
[1755155341828,0.84323466,121790.0,121780.0,1.68303648]
[1755155342531,0.84323466,121790.0,121780.0,1.2241562]
[1755155342724,0.84323466,121790.0,121780.0,1.68303648]
[1755155343732,0.84323466,121790.0,121780.0,0.91539648]
[1755155343930,0.38435438,121790.0,121780.0,1.2232362]
[1755155344132,0.84323466,121790.0,121780.0,1.2232362]
[1755155344731,0.84323466,121790.0,121780.0,1.2269162]
[1755155345126,0.38435438,121790.0,121780.0,1.2269162]
[1755155345330,0.38435438,121790.0,121780.0,0.37444]
[1755155345531,0.84323466,121790.0,121780.0,1.68655688]
[1755155345730,0.38435438,121790.0,121780.0,0.4565166]
[1755155345926,0.76116476,121790.0,121780.0,1.2290366]
[1755155346133,0.84323466,121790.0,121780.0,1.2290366]
[1755155346334,0.38435438,121790.0,121780.0,1.68791688]
[1755155346533,0.84323466,121790.0,121780.0,1.68791688]
[1755155346724,0.38435438,121790.0,121780.0,1.68791688]
[1755155346925,0.23291448,121790.0,121780.0,0.91539688]
[1755155347232,0.20765448,121790.0,121780.0,1.69051688]
[1755155347435,0.20765448,121790.0,121780.0,1.69047688]
[1755155347634,0.76451486,121790.0,121780.0,1.2315966]
[1755155347827,0.76451486,121790.0,121780.0,1.69047688]
[1755155347828,0.84323486,121790.0,121780.0,1.69047688]
[1755155348023,0.84323486,121790.0,121780.0,1.2315966]
[1755155348224,0.38435458,121790.0,121780.0,1.2315966]
[1755155348429,0.84323486,121790.0,121780.0,1.69047688]
[1755155349038,0.84323486,121790.0,121780.0,1.2315966]
[1755155349039,0.38435458,121790.0,121780.0,1.2315966]
[1755155349736,0.84323486,121790.0,121780.0,1.2329166]
[1755155350036,0.84323486,121790.0,121780.0,1.69179688]
[1755155350239,0.84323486,121790.0,121780.0,1.2329166]
[1755155352038,0.38435458,121790.0,121780.0,1.2329166]
[1755155352236,0.84323486,121790.0,121780.0,1.2329166]
[1755155352436,0.38435458,121790.0,121780.0,1.2329166]
[1755155352839,0.84323486,121790.0,121780.0,1.2329166]
[1755155353337,0.38435458,121790.0,121780.0,1.2329166]
[1755155353539,0.84323486,121790.0,121780.0,0.8721166]
[1755155353939,0.38435458,121790.0,121780.0,1.2329168]
[1755155354139,0.49435458,121790.0,121780.0,0.79004]
[1755155354337,0.95323486,121790.0,121780.0,0.79004]
[1755155354841,0.95323486,121790.0,121780.0,0.001]
[1755155356338,2.09495486,121790.0,121780.0,0.001]
[1755155356739,2.09487486,121790.0,121780.0,0.001]
[1755155357943,1.63599458,121790.0,121780.0,0.001]
[1755155358138,1.31403486,121790.0,121780.0,0.001]
[1755155358346,2.09491486,121790.0,121780.0,0.001]
[1755155358539,1.31403486,121790.0,121780.0,0.001]
[1755155358846,2.09547486,121790.0,121780.0,0.001]
[1755155360144,2.09547486,121790.0,121770.0,0.001]
[1755155360145,0.1993267,121780.0,121770.0,0.001]
[1755155360344,0.1993402,121760.0,121750.0,0.00018222]
[1755155360655,1.46062048,121760.0,121750.0,0.08713912]
[1755155360837,1.46062048,121760.0,121750.0,0.00018222]
[1755155361042,1.46062048,121760.0,121750.0,0.08227912]
[1755155361243,1.46154048,121760.0,121750.0,0.08227912]
[1755155361437,1.0026602,121760.0,121750.0,0.08713912]
[1755155361649,1.46154048,121760.0,121750.0,0.09651912]
[1755155361839,1.46154048,121760.0,121750.0,0.01642222]
[1755155362043,1.46154048,121760.0,121750.0,0.09691912]
[1755155362242,1.46154048,121760.0,121750.0,0.09891912]
[1755155362447,1.46154048,121760.0,121750.0,0.01682222]
[1755155362647,1.41088574,121760.0,121750.0,0.00418222]
[1755155363049,1.0026602,121760.0,121750.0,0.08627912]
[1755155363255,1.41088574,121760.0,121750.0,0.09113912]
[1755155363551,0.62756574,121760.0,121750.0,0.09113912]
[1755155363743,1.41196574,121760.0,121750.0,0.09113912]
[1755155363943,1.41196574,121760.0,121750.0,0.00904222]
[1755155364449,1.41212574,121760.0,121750.0,0.00904222]
[1755155364849,1.41212574,121760.0,121750.0,0.00418222]
[1755155365249,1.41240574,121760.0,121750.0,0.00418222]
[1755155366450,1.41236438,121760.0,121750.0,0.00418222]
[1755155366648,1.46987196,121760.0,121750.0,0.00418222]
[1755155366849,1.46977574,121760.0,121750.0,0.00418222]
[1755155367056,1.0615502,121760.0,121750.0,0.00218222]
[1755155367453,1.0615502,121760.0,121750.0,0.00018222]
[1755155367758,1.46977574,121760.0,121750.0,0.00018222]
[1755155370558,0.68505574,121760.0,121750.0,0.00018222]
[1755155370765,1.47253574,121760.0,121750.0,0.00018222]
[1755155371356,1.0643102,121760.0,121750.0,0.00018222]
[1755155371660,1.47253574,121760.0,121750.0,0.00018222]
[1755155372049,1.83333574,121760.0,121750.0,0.00018222]
[1755155372361,2.24148128,121760.0,121750.0,0.00018222]
[1755155374354,0.162937,121750.0,121740.0,0.002]
[1755155374560,1.08232254,121750.0,121740.0,0.002]
[1755155374960,0.674097,121750.0,121740.0,0.002]
[1755155375161,1.08232254,121750.0,121740.0,0.002]
[1755155375359,0.674097,121750.0,121740.0,0.002]
[1755155375565,1.08232254,121750.0,121740.0,0.002]
[1755155375774,0.674097,121750.0,121740.0,0.002]
[1755155375973,1.08232254,121750.0,121740.0,0.002]
[1755155376159,1.08232254,121750.0,121740.0,0.003]
[1755155376364,0.72152254,121750.0,121740.0,0.003]
[1755155376572,0.72152254,121750.0,121740.0,0.004]
[1755155376763,0.313297,121750.0,121740.0,0.004]
[1755155376965,1.50844254,121750.0,121740.0,0.004]
[1755155377365,0.72152254,121750.0,121740.0,0.004]
[1755155377571,1.100217,121750.0,121740.0,0.004]
[1755155377775,1.50824254,121750.0,121740.0,0.004]
[1755155377968,0.313297,121750.0,121740.0,0.004]
[1755155378160,1.50808254,121750.0,121740.0,0.004]
[1755155378566,1.099857,121750.0,121740.0,0.004]
[1755155378769,1.50808254,121750.0,121740.0,0.004]
[1755155379471,1.099857,121750.0,121740.0,0.004]
[1755155379675,1.50808254,121750.0,121740.0,0.004]
[1755155379972,1.099857,121750.0,121740.0,0.004]
[1755155380165,1.50808254,121750.0,121740.0,0.004]
[1755155382674,1.86820254,121750.0,121740.0,0.004]
[1755155383265,1.86820254,121750.0,121740.0,0.00407723]
[1755155385476,1.08232254,121750.0,121740.0,0.08618093]
[1755155385769,1.458937,121750.0,121740.0,0.00407723]
[1755155385977,1.86716254,121750.0,121740.0,0.00407723]
[1755155386162,1.458937,121750.0,121740.0,0.00407723]
[1755155386367,1.86716254,121750.0,121740.0,0.00407723]
[1755155386772,1.86716254,121750.0,121740.0,0.08618093]
[1755155386973,1.50636254,121750.0,121740.0,0.08618093]
[1755155387470,1.098137,121750.0,121740.0,0.08618093]
[1755155387671,1.50636254,121750.0,121740.0,0.08618093]
[1755155388175,1.50642243,121750.0,121740.0,0.08618093]
[1755155388374,1.50642861,121750.0,121740.0,0.08618093]
[1755155388566,1.0982072,121750.0,121740.0,0.08618093]
[1755155388766,1.50636254,121750.0,121740.0,0.08618093]
[1755155389079,1.50636254,121750.0,121740.0,0.00407723]
[1755155389278,1.098137,121750.0,121740.0,0.00407723]
[1755155389477,1.50636254,121750.0,121740.0,0.00407723]
[1755155390180,0.72152254,121750.0,121740.0,0.00407723]
[1755155390374,1.50544254,121750.0,121740.0,0.00407723]
[1755155390777,1.86600254,121750.0,121740.0,0.00407723]
[1755155392281,1.457777,121750.0,121740.0,0.00407723]
[1755155392781,1.86609876,121750.0,121740.0,0.00407723]
[1755155393081,1.86600254,121750.0,121740.0,0.00407723]
[1755155393775,1.457777,121750.0,121740.0,0.00407723]
[1755155394078,1.86600254,121750.0,121740.0,0.00407723]
[1755155395082,1.08232254,121750.0,121740.0,0.00407723]
[1755155395384,0.72152254,121750.0,121740.0,0.00407723]
[1755155395680,1.86484254,121750.0,121740.0,0.00407723]
[1755155397184,1.456617,121750.0,121740.0,0.00407723]
[1755155397383,1.86452254,121750.0,121740.0,0.00407723]
[1755155397580,1.16442324,121750.0,121730.0,0.3618]
[1755155397778,1.39256522,121740.0,121730.0,0.3618]
[1755155398083,1.39248914,121740.0,121730.0,0.3618]
[1755155399081,1.39248914,121740.0,121730.0,0.3628]
[1755155399388,1.39248914,121740.0,121730.0,0.3638]
[1755155399580,1.39248914,121740.0,121730.0,0.3648]
[1755155399779,1.50248914,121740.0,121730.0,0.3648]
[1755155400078,1.0942636,121740.0,121730.0,0.3648]
[1755155400388,1.50248914,121740.0,121730.0,0.3648]
[1755155400782,1.86244914,121740.0,121730.0,0.004]
[1755155401386,1.08152914,121740.0,121730.0,0.004]
[1755155401588,1.86240914,121740.0,121730.0,0.004]
[1755155402283,1.86240914,121740.0,121730.0,0.0861104]
[1755155402588,1.86216914,121740.0,121730.0,0.0901904]
[1755155402887,1.4539436,121740.0,121730.0,0.0861104]
[1755155403084,1.75216914,121740.0,121730.0,0.0861104]
[1755155403290,1.88216914,121740.0,121730.0,0.004]
[1755155403479,1.88216914,121740.0,121730.0,0.0861104]
[1755155403678,1.88316914,121740.0,121730.0,0.0841104]
[1755155404075,1.88316914,121740.0,121730.0,0.0930504]
[1755155404387,1.4749436,121740.0,121730.0,0.001]
[1755155404590,1.88316914,121740.0,121730.0,0.001]
[1755155404889,1.10252914,121740.0,121730.0,0.001]
[1755155405089,1.88316914,121740.0,121730.0,0.001]
[1755155405283,1.4749436,121740.0,121730.0,0.001]
[1755155405582,1.88316914,121740.0,121730.0,0.0831104]
[1755155406181,1.88316914,121740.0,121730.0,0.001]
[1755155406684,0.97252914,121740.0,121730.0,0.001]
[1755155406887,1.87428914,121740.0,121730.0,0.001]
[1755155409376,1.4660636,121740.0,121730.0,0.001]
[1755155409576,1.87428914,121740.0,121730.0,0.001]
[1755155410287,1.87437783,121740.0,121730.0,0.001]
[1755155410482,1.87428914,121740.0,121730.0,0.001]
[1755155410682,2.38484676,121740.0,121730.0,0.001]
[1755155411581,1.4660636,121740.0,121730.0,0.001]
[1755155411781,2.38484676,121740.0,121730.0,0.001]
[1755155413489,1.4660636,121740.0,121730.0,0.001]
[1755155413685,2.38484676,121740.0,121730.0,0.001]
[1755155415984,2.38853725,121740.0,121730.0,0.001]
[1755155416183,2.38844676,121740.0,121730.0,0.001]
[1755155416891,2.38851693,121740.0,121730.0,0.001]
[1755155417087,2.38854112,121740.0,121730.0,0.001]
[1755155417293,2.38844676,121740.0,121730.0,0.001]
[1755155417487,2.38852958,121740.0,121730.0,0.001]
[1755155417789,2.38844676,121740.0,121730.0,0.001]
[1755155420596,2.38851571,121740.0,121730.0,0.001]
[1755155420790,2.38844676,121740.0,121730.0,0.001]
[1755155421998,2.38728676,121740.0,121730.0,0.001]
[1755155424797,1.60315591,121740.0,121730.0,0.001]
[1755155424997,1.4684236,121740.0,121730.0,0.55840198]
[1755155425197,1.14369518,121740.0,121730.0,0.56734198]
[1755155425400,1.92781518,121740.0,121730.0,0.1079504]
[1755155425599,2.38728252,121740.0,121730.0,0.0998304]
[1755155425800,2.38720676,121740.0,121730.0,0.0871904]
[1755155426000,1.4684236,121740.0,121730.0,0.0871904]
[1755155426201,2.38720676,121740.0,121730.0,0.0871904]
[1755155426702,1.92781518,121740.0,121730.0,0.0871904]
[1755155427202,0.6843036,121740.0,121730.0,0.0871904]
[1755155427397,1.92773518,121740.0,121730.0,0.54250198]
[1755155427699,1.02369518,121740.0,121730.0,0.1079504]
[1755155427901,1.80701518,121740.0,121730.0,0.02584]
[1755155429200,1.80701518,121740.0,121730.0,0.01772]
[1755155429590,1.80701518,121740.0,121730.0,0.001]
[1755155429802,2.26640676,121740.0,121730.0,0.001]
[1755155430003,1.3476236,121740.0,121730.0,0.001]
[1755155430401,2.26640676,121740.0,121730.0,0.001]
[1755155431097,0.12146709,121740.0,121730.0,0.90330198]
[1755155431402,0.02561709,121740.0,121730.0,2.17093356]
[1755155431597,0.02561709,121740.0,121730.0,1.71154198]
[1755155431797,0.10360709,121740.0,121730.0,1.71154198]
[1755155432106,0.11811709,121740.0,121730.0,0.92914198]
[1755155432404,0.65961227,121740.0,121730.0,0.37074]
[1755155432597,0.65961227,121740.0,121730.0,0.4479904]
[1755155432793,0.65961227,121740.0,121730.0,0.4439104]
[1755155432998,0.98458069,121740.0,121730.0,0.4687504]
[1755155433506,1.44397227,121740.0,121730.0,0.4687504]
[1755155433905,1.50147227,121740.0,121730.0,0.4687504]
[1755155434102,1.96086385,121740.0,121730.0,0.3618]
[1755155434607,1.45041664,121740.0,121730.0,0.3618]
[1755155435203,0.66605664,121740.0,121730.0,0.3618]
[1755155435402,1.45005664,121740.0,121730.0,0.3618]
[1755155435608,0.76598955,121740.0,121730.0,0.001]
[1755155435812,1.55002955,121740.0,121730.0,0.001]
[1755155436205,0.3576536,121740.0,121730.0,0.001]
[1755155436405,1.1416136,121740.0,121730.0,0.001]
[1755155436609,1.54994955,121740.0,121730.0,0.001]
[1755155437596,1.56685623,121740.0,121730.0,0.001]
[1755155437803,0.60755635,121730.0,121720.0,0.3628]
[1755155438106,0.3092204,121730.0,121720.0,0.3628]
[1755155438305,0.71755635,121730.0,121720.0,0.002]
[1755155438511,1.50199635,121730.0,121720.0,0.002]
[1755155439009,1.50175635,121730.0,121720.0,0.002]
[1755155439206,1.0934204,121730.0,121720.0,0.002]
[1755155439418,1.50175635,121730.0,121720.0,0.002]
[1755155439709,1.50175635,121730.0,121720.0,0.003]
[1755155440010,0.1992272,121720.0,121710.0,0.527047]
[1755155440205,1.45256315,121720.0,121710.0,0.527047]
[1755155440504,1.0442272,121720.0,121710.0,0.527047]
[1755155440809,1.46950236,121720.0,121710.0,0.4449235]
[1755155441212,1.06116641,121720.0,121710.0,0.4449235]
[1755155441508,1.06116641,121720.0,121710.0,0.4500035]
[1755155441712,1.06116641,121720.0,121710.0,0.3638]
[1755155442013,1.46950236,121720.0,121710.0,0.3658]
[1755155442310,1.06116641,121720.0,121710.0,0.3658]
[1755155442609,1.47038236,121720.0,121710.0,0.3658]
[1755155442904,1.06204641,121720.0,121710.0,0.3658]
[1755155443112,1.06204641,121720.0,121710.0,0.4479239]
[1755155443402,1.41038236,121720.0,121710.0,0.4479239]
[1755155443609,1.00204641,121720.0,121710.0,0.4479239]
[1755155443810,1.41038236,121720.0,121710.0,0.4479239]
[1755155444006,1.41038236,121720.0,121710.0,0.4520039]
[1755155444201,1.47038236,121720.0,121710.0,0.3658]
[1755155445110,1.06730888,121720.0,121710.0,0.4479239]
[1755155445311,1.58554861,121720.0,121710.0,0.4479239]
[1755155445910,1.17721266,121720.0,121710.0,0.4479239]
[1755155446213,1.58554861,121720.0,121710.0,0.4479239]
[1755155446608,1.58554861,121720.0,121710.0,0.4520039]
[1755155447009,1.06721266,121720.0,121710.0,0.4520039]
[1755155447209,1.47554861,121720.0,121710.0,0.4520039]
[1755155447606,1.47554861,121720.0,121710.0,0.4479239]
[1755155447910,0.28133266,121720.0,121710.0,0.4520039]
[1755155448110,1.47550861,121720.0,121710.0,0.4490039]
[1755155448311,1.06717266,121720.0,121710.0,0.4538639]
[1755155448509,0.26682266,121720.0,121710.0,0.87963985]
[1755155448709,0.24534256,121720.0,121710.0,0.88949985]
[1755155448913,0.10677678,121720.0,121710.0,0.88949985]
[1755155449107,0.10677678,121720.0,121710.0,1.67497985]
[1755155449307,0.10677678,121720.0,121710.0,0.88949985]
[1755155449607,0.18889388,121720.0,121710.0,1.67505985]
[1755155449910,0.10677678,121720.0,121710.0,1.67505985]
[1755155450110,0.10677678,121720.0,121710.0,1.67509985]
[1755155450310,0.10677678,121720.0,121710.0,1.2667639]
[1755155450509,0.08216678,121720.0,121710.0,1.67509985]
[1755155450814,0.18889388,121720.0,121710.0,1.67685985]
[1755155451313,0.28139388,121720.0,121710.0,1.2685239]
[1755155451514,0.28139388,121720.0,121710.0,0.4811639]
[1755155451709,0.28139388,121720.0,121710.0,1.2684039]
[1755155453115,0.28139388,121720.0,121710.0,1.67673985]
[1755155453315,0.28139388,121720.0,121710.0,1.2684039]
[1755155453512,0.28139388,121720.0,121710.0,1.67673985]
[1755155453707,0.10677678,121720.0,121710.0,1.67673985]
[1755155454114,0.10677678,121720.0,121710.0,1.2684039]
[1755155454313,0.10677678,121720.0,121710.0,1.67673985]
[1755155454610,0.10677678,121720.0,121710.0,1.67621985]
[1755155454812,1.58786757,121720.0,121710.0,0.88949985]
[1755155455012,1.56522757,121720.0,121710.0,1.67645985]
[1755155455514,1.58786757,121720.0,121710.0,1.67645985]
[1755155455713,1.58786757,121720.0,121710.0,0.88949985]
[1755155455914,1.56522757,121720.0,121710.0,1.67709985]
[1755155456114,0.0575,121740.0,121730.0,0.1183503]
[1755155456314,0.3639031,121760.0,121750.0,0.1183368]
[1755155456510,0.3639031,121760.0,121750.0,1.2614968]
[1755155457010,0.3639031,121760.0,121750.0,0.4741368]
[1755155457211,0.3639031,121760.0,121750.0,1.2612968]
[1755155457823,0.38082172,121760.0,121750.0,1.2612968]
[1755155458011,0.38082172,121760.0,121750.0,1.2592968]
[1755155458314,0.38082172,121760.0,121750.0,1.2582968]
[1755155458817,0.38482172,121760.0,121750.0,1.2582968]
[1755155459118,0.38782172,121760.0,121750.0,1.2582968]
[1755155460214,0.38782172,121760.0,121750.0,1.1792]
[1755155461017,0.38782172,121760.0,121750.0,1.2612968]
[1755155461414,0.38782172,121760.0,121750.0,1.1792]
[1755155461618,0.79615767,121760.0,121750.0,1.1792]
[1755155461920,0.79615767,121760.0,121750.0,0.3608]
[1755155462212,0.38782172,121760.0,121750.0,0.36566]
[1755155462521,0.38782172,121760.0,121750.0,0.39204]
[1755155464322,0.38782172,121760.0,121750.0,0.4741371]
[1755155464917,0.79615767,121760.0,121750.0,0.39204]
[1755155465224,0.38782172,121760.0,121750.0,0.39204]
[1755155465529,0.38782172,121760.0,121750.0,0.4741372]
[1755155466623,0.79615767,121760.0,121750.0,0.4741372]
[1755155467527,0.79615767,121760.0,121750.0,0.39204]
[1755155468420,0.79615767,121760.0,121750.0,0.3608]
[1755155469628,0.79615767,121760.0,121750.0,0.37363775]
[1755155470728,0.89615767,121760.0,121750.0,0.37363775]
[1755155471022,0.91293323,121760.0,121750.0,0.01283775]
[1755155471227,0.1295872,121750.0,121740.0,0.6383469]
[1755155471431,0.1997172,121750.0,121740.0,1.35564213]
[1755155471826,0.1997172,121750.0,121740.0,1.27354023]
[1755155472431,0.2007172,121750.0,121740.0,1.27354023]
[1755155473829,0.2007172,121750.0,121740.0,1.27354253]
[1755155474032,0.2027172,121750.0,121740.0,1.19143873]
[1755155474232,0.2027172,121750.0,121740.0,1.19143848]
[1755155474432,0.2027172,121750.0,121740.0,1.19075848]
[1755155474933,0.2027172,121750.0,121740.0,0.40487848]
[1755155475133,0.61105315,121750.0,121740.0,0.40487848]
[1755155477233,0.61105315,121750.0,121740.0,0.40487849]
[1755155478036,0.2027172,121750.0,121740.0,0.40487849]
[1755155478237,0.61105315,121750.0,121740.0,0.40487849]
[1755155478837,0.61105315,121750.0,121740.0,0.48698229]
[1755155480044,0.61105315,121750.0,121740.0,0.40487849]
[1755155480934,0.61105315,121750.0,121740.0,0.01691849]
[1755155482238,1.39445315,121750.0,121740.0,0.01691849]
[1755155482841,1.39445315,121750.0,121740.0,0.01283849]
[1755155483737,1.39445315,121750.0,121740.0,0.37363849]
[1755155483941,1.39445315,121750.0,121740.0,0.01691849]
[1755155484142,0.61105315,121750.0,121740.0,0.02177849]
[1755155484342,0.2027172,121750.0,121740.0,0.02177849]
[1755155484537,0.61105315,121750.0,121740.0,0.39835849]
[1755155484739,0.61105315,121750.0,121740.0,0.40487849]
[1755155485043,0.61105315,121750.0,121740.0,0.48698229]
[1755155485436,0.2027172,121750.0,121740.0,0.48698229]
[1755155485836,0.2027172,121750.0,121740.0,0.4741438]
[1755155486138,0.2027172,121750.0,121740.0,0.48698296]
[1755155486740,0.2027172,121750.0,121740.0,0.12618296]
[1755155486947,0.2027172,121750.0,121740.0,0.40487916]
[1755155487143,0.2027172,121750.0,121740.0,0.04407916]
[1755155487338,0.61105315,121750.0,121740.0,0.41709866]
[1755155487638,0.2013372,121750.0,121740.0,0.49920286]
[1755155487841,0.2013372,121750.0,121740.0,1.28112286]
[1755155488045,0.60967315,121750.0,121740.0,0.13840286]
[1755155488545,0.60967315,121750.0,121740.0,0.49920286]
[1755155488743,0.2013372,121750.0,121740.0,0.49920286]
[1755155488944,0.2013372,121750.0,121740.0,0.49920178]
[1755155490343,0.1548972,121750.0,121740.0,0.49920178]
[1755155490546,0.1077372,121750.0,121740.0,1.69421773]
[1755155491040,0.02564,121750.0,121740.0,1.69421773]